bitfinex-derivatives/quotes_ETHF0:USTF0_20241027
["timestamp","ask_amount","ask_price","bid_price","bid_amount"]
[1729996093611,1.30951525,2477.0,2476.9,0.85129]
[1729996094314,1.30951525,2477.0,2476.9,1.48325522]
[1729996094719,1.30951525,2477.0,2476.9,0.85129]
[1729996096116,1.30951525,2477.0,2476.9,4.02914644]
[1729996096917,1.30951525,2477.0,2476.9,3.05289667]
[1729996099210,1.30951525,2477.0,2476.9,1.99200485]
[1729996099415,1.30951525,2477.0,2476.9,3.05289091]
[1729996100213,1.30951525,2477.0,2476.9,1.99200485]
[1729996100425,1.30951525,2477.0,2476.9,3.05289126]
[1729996101316,1.30951525,2477.0,2476.9,1.99200485]
[1729996101723,1.30951525,2477.0,2476.9,3.05289258]
[1729996102130,1.30951525,2477.0,2476.9,1.99200485]
[1729996102327,1.30951525,2477.0,2476.9,3.0528908]
[1729996102623,1.30951525,2477.0,2476.9,0.40419]
[1729996109530,1.30951525,2477.0,2476.9,3.05325386]
[1729996110429,1.30951525,2477.0,2476.9,1.99236791]
[1729996110630,1.30951525,2477.0,2476.9,3.5824095]
[1729996110834,1.30951525,2477.0,2476.9,1.99236791]
[1729996111020,1.30951525,2477.0,2476.9,3.5824095]
[1729996111229,1.30951525,2477.0,2476.9,3.05355626]
[1729996111429,1.30951525,2477.0,2476.9,3.05359934]
[1729996111624,1.30951525,2477.0,2476.9,1.99236791]
[1729996112431,1.30951525,2477.0,2476.9,3.5824095]
[1729996112635,1.30951525,2477.0,2476.9,4.21440279]
[1729996112827,1.30951525,2477.0,2476.9,3.5824095]
[1729996115027,1.30951525,2477.0,2476.9,4.21440421]
[1729996115233,1.30951525,2477.0,2476.9,4.21440395]
[1729996116837,1.30951525,2477.0,2476.9,3.5824095]
[1729996117534,1.30951525,2477.0,2476.9,3.05376653]
[1729996120445,1.71368525,2477.0,2476.9,2.64998498]
[1729996120743,1.71368525,2477.0,2476.9,1.06139862]
[1729996123343,3.0232005,2477.0,2476.9,1.06139862]
[1729996123543,7.0608005,2477.0,2476.9,1.06139862]
[1729996124047,0.40419,2476.9,2476.8,1.06139862]
[1729996124241,2.12780525,2476.9,2476.8,1.69343019]
[1729996124465,2.12780525,2476.9,2476.8,2.22207316]
[1729996124643,2.12780525,2476.9,2476.8,3.81059493]
[1729996124841,2.12780525,2476.9,2476.8,2.22207316]
[1729996125047,2.12780525,2476.9,2476.8,3.17856513]
[1729996125744,2.12780525,2476.9,2476.8,1.58852354]
[1729996125944,2.12780525,2476.9,2476.8,2.6498616]
[1729996127249,2.12780525,2476.9,2476.8,1.06133806]
[1729996128746,6.16540525,2476.9,2476.8,1.06133806]
[1729996129444,6.16540525,2476.9,2476.7,1.59004159]
[1729996129445,0.40421,2476.8,2476.7,1.06133806]
[1729996129647,2.57432525,2476.8,2476.7,2.64935441]
[1729996129851,6.61192525,2476.8,2476.7,1.06133806]
[1729996133151,2.57432525,2476.8,2476.7,1.06133806]
[1729996133640,2.57432525,2476.8,2476.6,1.88067806]
[1729996133847,1.30951525,2476.7,2476.6,1.88067806]
[1729996134046,1.30951525,2476.7,2476.6,3.46822042]
[1729996135951,0.4141,2476.9,2476.6,3.06398042]
[1729996136151,0.4141,2476.9,2476.8,0.40421]
[1729996136353,1.2341,2476.9,2476.8,0.40421]
[1729996136557,5.2717,2476.9,2476.8,0.82751]
[1729996139250,6.58121525,2476.9,2476.8,0.82751]
[1729996139441,6.58121525,2476.9,2476.8,0.4233]
[1729996139645,6.98540525,2476.9,2476.8,0.4233]
[1729996140644,2.94780525,2476.9,2476.8,0.82751]
[1729996140958,2.94680525,2476.9,2476.8,0.4233]
[1729996141958,2.54261525,2476.9,2476.8,0.82751]
[1729996142253,2.94680525,2476.9,2476.8,0.4233]
[1729996154362,2.94680525,2476.9,2476.8,0.82751]
[1729996154561,2.94680525,2476.9,2476.8,0.4233]
[1729996154963,2.54261525,2476.9,2476.8,0.82751]
[1729996155957,2.94680525,2476.9,2476.8,0.82751]
[1729996156570,2.54261525,2476.9,2476.8,0.82751]
[1729996156762,1.72361525,2476.9,2476.8,0.82751]
[1729996157068,2.12851525,2476.9,2476.8,0.82751]
[1729996166169,2.12851525,2476.9,2476.8,1.88884806]
[1729996169876,2.12851525,2476.9,2476.8,0.82751]
[1729996176078,2.53270525,2476.9,2476.8,0.82751]
[1729996176875,2.53270525,2476.9,2476.8,1.48463806]
[1729996177386,2.53270525,2476.9,2476.8,1.06133806]
[1729996177987,2.12851525,2476.9,2476.7,1.06133806]
[1729996178188,2.53622525,2476.8,2476.6,5.61717159]
[1729996178385,1.22671,2476.8,2476.7,1.58878481]
[1729996178680,1.22671,2476.8,2476.7,2.6503715]
[1729996179082,0.8225,2476.8,2476.7,2.6503715]
[1729996179290,0.8225,2476.8,2476.7,3.0545915]
[1729996179788,1.22671,2476.8,2476.7,3.1788264]
[1729996179990,1.22671,2476.8,2476.7,3.8108718]
[1729996179991,2.53622525,2476.8,2476.7,3.8108718]
[1729996180693,2.53622525,2476.8,2476.7,1.58878481]
[1729996180986,2.53622525,2476.8,2476.7,2.65037753]
[1729996184212,2.53622525,2476.8,2476.7,2.65034737]
[1729996188282,2.13201525,2476.8,2476.7,2.65034737]
[1729996188490,2.13201525,2476.8,2476.7,3.05456737]
[1729996188680,2.13201525,2476.8,2476.7,1.99297465]
[1729996188883,2.13201525,2476.8,2476.7,1.99289063]
[1729996189084,2.13201525,2476.8,2476.7,3.17871222]
[1729996189294,2.53622525,2476.8,2476.7,2.65017837]
[1729996189494,2.53622525,2476.8,2476.7,3.05439837]
[1729996190093,2.53622525,2476.8,2476.7,1.99289063]
[1729996190291,2.53622525,2476.8,2476.7,3.05440134]
[1729996191387,2.53622525,2476.8,2476.7,1.99289063]
[1729996191792,2.53622525,2476.8,2476.7,3.05439733]
[1729996191999,2.53622525,2476.8,2476.6,4.02713]
[1729996192188,1.30951525,2476.7,2476.6,4.02713]
[1729996194096,1.30951525,2476.7,2476.6,0.81933]
[1729996194294,1.30951525,2476.7,2476.6,4.02713]
[1729996195492,1.30951525,2476.7,2476.6,0.81933]
[1729996196692,1.30951525,2476.7,2476.6,4.02713]
[1729996197091,1.30951525,2476.7,2476.6,0.81933]
[1729996197489,1.30951525,2476.7,2476.6,4.02713]
[1729996198393,1.30951525,2476.7,2476.6,0.81933]
[1729996198896,1.30951525,2476.7,2476.6,4.02713]
[1729996199293,1.30951525,2476.7,2476.6,4.65918258]
[1729996200099,1.30951525,2476.7,2476.6,7.83784336]
[1729996200794,1.30951525,2476.7,2476.6,7.83784239]
[1729996201700,1.30951525,2476.7,2476.6,4.63004239]
[1729996202000,1.30951525,2476.7,2476.6,3.0414232]
[1729996202196,1.30951525,2476.7,2476.6,4.63003687]
[1729996204295,1.71373525,2476.7,2476.6,4.63003687]
[1729996204496,1.71373525,2476.7,2476.6,3.59375526]
[1729996204697,1.71373525,2476.7,2476.6,3.81071495]
[1729996204993,2.12233525,2476.7,2476.6,3.81071495]
[1729996205192,2.12233525,2476.7,2476.6,3.17865526]
[1729996205704,2.12233525,2476.7,2476.6,1.58861367]
[1729996205896,2.12233525,2476.7,2476.6,2.65008617]
[1729996206401,2.12233525,2476.7,2476.6,1.0614725]
[1729996207199,2.12233525,2476.7,2476.5,0.84985]
[1729996207396,1.30951525,2476.6,2476.5,0.84985]
[1729996208999,1.71375525,2476.6,2476.5,0.84985]
[1729996212605,1.30951525,2476.6,2476.5,0.84985]
[1729996214805,2.12851525,2476.6,2476.5,0.4456]
[1729996215005,2.53275525,2476.6,2476.5,0.4456]
[1729996215402,2.53275525,2476.6,2476.5,2.03366742]
[1729996215604,2.12851525,2476.6,2476.5,2.43792742]
[1729996215800,2.53275525,2476.6,2476.5,2.43792742]
[1729996216403,2.12851525,2476.6,2476.5,2.43792742]
[1729996218108,2.12851525,2476.6,2476.5,0.84986]
[1729996221502,2.12851525,2476.6,2476.5,4.02977257]
[1729996223610,2.12851525,2476.6,2476.5,2.44162652]
[1729996226510,2.12851525,2476.6,2476.5,0.84986]
[1729996230611,2.12851525,2476.6,2476.5,3.49810045]
[1729996232010,2.12851525,2476.6,2476.5,2.43723101]
[1729996232409,2.12851525,2476.6,2476.5,3.49781893]
[1729996235018,2.12851525,2476.6,2476.5,2.43714058]
[1729996235414,2.12851525,2476.6,2476.5,4.0289071]
[1729996236110,2.12851525,2476.6,2476.5,2.43714058]
[1729996236312,2.12851525,2476.6,2476.5,4.0289071]
[1729996237211,2.12851525,2476.6,2476.5,2.43714058]
[1729996237419,2.12851525,2476.6,2476.5,4.0289071]
[1729996238713,2.12851525,2476.6,2476.5,0.84986]
[1729996240920,3.61198,2477.0,2476.9,0.40419]
[1729996241111,5.74049525,2477.0,2476.8,0.4042]
[1729996241308,4.86888,2477.0,2476.9,0.408]
[1729996242523,7.4879105,2477.0,2476.9,0.408]
[1729996242913,4.2801105,2477.0,2476.9,0.408]
[1729996248326,2.97059525,2477.0,2476.9,0.408]
[1729996249225,2.56641525,2477.0,2476.9,0.408]
[1729996249427,1.2569,2477.0,2476.9,0.81219]
[1729996249625,1.74741525,2477.0,2476.9,0.81219]
[1729996249827,2.56641525,2477.0,2476.9,1.87315318]
[1729996250124,2.56641525,2477.0,2476.9,0.81219]
[1729996250320,2.56641525,2477.0,2476.9,1.87315318]
[1729996250918,2.56641525,2477.0,2476.9,0.81219]
[1729996252822,2.56641525,2477.0,2476.9,1.25259]
[1729996253622,1.30951525,2477.0,2476.9,2.31355318]
[1729996253828,0.819,2477.1,2477.0,0.40416]
[1729996254021,2.12851525,2477.1,2477.0,0.40416]
[1729996260925,2.12851525,2477.1,2476.9,4.05238]
[1729996261125,1.74981525,2477.0,2476.9,4.05238]
[1729996264428,1.74981525,2477.0,2476.9,0.84458]
[1729996264630,1.74981525,2477.0,2476.9,4.05238]
[1729996265035,1.74981525,2477.0,2476.9,0.84458]
[1729996265335,1.74981525,2477.0,2476.9,4.05238]
[1729996267833,1.74981525,2477.0,2476.9,4.49038]
[1729996268943,1.74981525,2477.0,2476.9,1.28258]
[1729996269240,1.74981525,2477.0,2476.9,4.04999]
[1729996269937,2.15398525,2477.0,2476.9,3.6458]
[1729996270941,2.15398525,2477.0,2476.9,0.438]
[1729996271534,2.15398525,2477.0,2476.9,3.6458]
[1729996272836,1.74981525,2477.0,2476.9,4.04999]
[1729996274845,1.74981525,2477.0,2476.9,0.84219]
[1729996275043,1.74981525,2477.0,2476.9,4.04999]
[1729996275443,1.74981525,2477.0,2476.9,3.6458]
[1729996275645,0.40421,2476.8,2476.7,1.06096318]
[1729996275945,0.40422,2476.7,2476.6,3.2078]
[1729996276141,2.55333525,2476.7,2476.6,3.2078]
[1729996278140,2.55333525,2476.7,2476.4,0.83616]
[1729996278340,1.30951525,2476.5,2476.4,0.83616]
[1729996278538,1.30951525,2476.5,2476.4,5.35347525]
[1729996279148,0.819,2476.6,2476.4,8.98761525]
[1729996279341,0.4291,2476.9,2476.5,5.34711525]
[1729996279342,0.8455,2476.9,2476.5,5.34711525]
[1729996279544,1.30951525,2476.8,2476.7,3.61202]
[1729996279759,1.30951525,2476.8,2476.7,4.45462]
[1729996283645,1.30951525,2476.8,2476.7,3.89836377]
[1729996283849,1.30951525,2476.8,2476.7,7.10616377]
[1729996284643,1.30951525,2476.8,2476.7,5.51437934]
[1729996284843,1.30951525,2476.8,2476.7,2.30657934]
[1729996287450,1.30951525,2476.8,2476.7,3.89885383]
[1729996290652,1.30951525,2476.8,2476.7,1.24682]
[1729996290845,1.30951525,2476.8,2476.7,0.8426]
[1729996291052,0.40424,2476.7,2476.5,3.61205]
[1729996291252,1.30951525,2476.6,2476.5,3.61205]
[1729996291562,1.74131525,2476.6,2476.5,3.61205]
[1729996293054,1.74131525,2476.6,2476.5,0.40425]
[1729996293356,2.14555525,2476.6,2476.5,0.40425]
[1729996294151,1.74131525,2476.6,2476.5,0.40425]
[1729996297757,1.74131525,2476.6,2476.5,0.81975]
[1729996298658,1.74131525,2476.6,2476.5,1.87950934]
[1729996299261,1.74131525,2476.6,2476.5,0.81975]
[1729996301464,1.74131525,2476.6,2476.5,1.87950934]
[1729996301653,1.30951525,2476.6,2476.5,3.18902459]
[1729996302158,1.30951525,2476.6,2476.5,4.78617825]
[1729996304964,1.6461,2476.9,2476.5,4.38192825]
[1729996305164,1.6461,2476.9,2476.8,0.40421]
[1729996305465,2.95561525,2476.9,2476.8,0.40421]
[1729996306562,6.99321525,2476.9,2476.8,0.40421]
[1729996308057,6.99321525,2476.9,2476.6,1.05975934]
[1729996308358,1.30951525,2476.7,2476.6,1.46399934]
[1729996313865,1.30951525,2476.7,2476.6,0.40424]
[1729996315366,2.05029,2476.9,2476.7,0.40421]
[1729996315664,2.05029,2476.9,2476.8,0.4092]
[1729996318059,3.35980525,2476.9,2476.8,0.4092]
[1729996321066,2.95561525,2476.9,2476.8,0.4092]
[1729996321266,2.95461525,2476.9,2476.8,0.81341]
[1729996321471,2.95461525,2476.9,2476.8,1.87316934]
[1729996321769,2.53781525,2476.9,2476.8,1.87316934]
[1729996322967,1.30951525,2476.9,2476.8,1.87316934]
[1729996323671,1.30951525,2476.9,2476.8,5.08096934]
[1729996324168,1.30951525,2476.9,2476.8,6.67960601]
[1729996324368,1.30951525,2476.9,2476.8,6.67963801]
[1729996326066,1.30951525,2476.9,2476.8,3.47183801]
[1729996326572,1.30951525,2476.9,2476.8,6.6795552]
[1729996326771,1.30951525,2476.9,2476.8,10.7171552]
[1729996327174,1.30951525,2476.9,2476.8,6.6795552]
[1729996327371,1.30951525,2476.9,2476.8,6.67953751]
[1729996328070,1.30951525,2476.9,2476.8,7.20941718]
[1729996328466,1.30951525,2477.0,2476.8,12.15232243]
[1729996328668,1.30951525,2477.0,2476.9,7.52843657]
[1729996328874,1.30951525,2477.0,2476.9,4.86949]
[1729996331467,1.30951525,2477.0,2476.9,0.83189]
[1729996332673,1.30951525,2477.0,2476.9,4.86949]
[1729996332870,1.30951525,2477.0,2476.9,0.83189]
[1729996334070,1.30951525,2477.0,2476.9,4.86949]
[1729996334572,1.30951525,2477.0,2476.9,0.83189]
[1729996334775,1.30951525,2477.0,2476.9,4.86949]
[1729996335070,1.30951525,2477.0,2476.9,0.83189]
[1729996335266,1.30951525,2477.0,2476.9,4.86949]
[1729996335467,1.30951525,2477.0,2476.9,0.83189]
[1729996335669,1.30951525,2477.0,2476.9,4.86949]
[1729996335868,1.30951525,2477.0,2476.9,1.8924125]
[1729996336070,1.30951525,2477.0,2476.9,5.9300125]
[1729996336275,1.30951525,2477.0,2476.9,1.8924125]
[1729996336776,1.30951525,2477.0,2476.9,5.9300125]
[1729996337176,1.30951525,2477.0,2476.9,1.8924125]
[1729996337377,1.30951525,2477.0,2476.9,5.9300125]
[1729996337576,1.30951525,2477.0,2476.9,1.8924125]
[1729996337763,1.30951525,2477.0,2476.9,5.9300125]
[1729996337970,1.30951525,2477.0,2476.9,1.8924125]
[1729996338171,1.30951525,2477.0,2476.9,5.9300125]
[1729996338880,1.30951525,2477.0,2476.9,1.8924125]
[1729996339767,1.30951525,2477.0,2476.9,5.9300125]
[1729996340272,1.30951525,2477.0,2476.9,1.8924125]
[1729996343879,1.30951525,2477.0,2476.9,1.4647125]
[1729996344182,1.74951525,2477.0,2476.9,1.4647125]
[1729996346782,1.74951525,2477.0,2476.9,0.40419]
[1729996348380,0.44,2477.0,2476.9,0.40419]
[1729996348572,3.2078,2477.5,2476.9,1.30951525]
[1729996348776,0.818,2477.4,2477.3,0.40412]
[1729996348980,2.12751525,2477.4,2477.3,0.40412]
[1729996349191,2.12751525,2477.4,2477.3,0.84842]
[1729996349386,1.30951525,2477.4,2477.3,0.84842]
[1729996349887,0.8686,2477.5,2477.4,0.40411]
[1729996350090,2.17811525,2477.5,2477.4,0.84861]
[1729996351895,0.8686,2477.5,2477.4,0.84861]
[1729996352081,1.74871525,2477.5,2477.4,2.15812525]
[1729996352490,0.8737,2477.7,2477.4,1.75401525]
[1729996352687,1.75411525,2477.7,2477.6,0.40408]
[1729996353190,1.75411525,2477.7,2477.6,0.83408]
[1729996355084,3.2078,2478.1,2477.6,5.77551525]
[1729996355292,3.6254,2478.1,2478.0,1.30951525]
[1729996355493,0.818,2478.4,2478.2,0.40396]
[1729996355789,1.30951525,2478.3,2478.2,0.40396]
[1729996358103,4.42974,2478.5,2478.2,1.30951525]
[1729996358104,1.30951525,2478.4,2478.2,1.30951525]
[1729996358298,4.0258,2478.5,2478.4,0.40395]
[1729996358600,4.51731525,2478.5,2478.4,0.40395]
[1729996358796,3.2078,2478.5,2478.4,1.71346525]
[1729996359493,4.51731525,2478.5,2478.4,1.71346525]
[1729996360303,4.92125525,2478.5,2478.2,0.40397]
[1729996360499,1.30951525,2478.3,2478.2,0.40397]
[1729996361206,1.71347525,2478.3,2478.1,0.40399]
[1729996361406,1.75701525,2478.2,2478.1,0.40399]
[1729996364610,1.75701525,2478.2,2478.0,0.404]
[1729996364808,1.72721525,2478.1,2477.8,3.61183]
[1729996365110,1.30951525,2477.9,2477.8,3.61183]
[1729996366103,1.30951525,2477.9,2477.8,4.51731525]
[1729996366306,1.30951525,2477.9,2477.8,4.92135525]
[1729996367602,1.30951525,2477.9,2477.8,5.34655525]
[1729996368413,1.30951525,2477.9,2477.8,2.13875525]
[1729996369406,1.71531525,2478.0,2477.8,1.73471525]
[1729996369612,1.71531525,2478.0,2477.9,1.71354525]
[1729996371316,0.4058,2478.0,2477.9,1.71354525]
[1729996371919,0.4058,2478.0,2477.9,4.92134525]
[1729996372815,2.57501525,2478.2,2478.1,0.40399]
[1729996372816,1.75701525,2478.2,2478.1,0.40399]
[1729996376318,0.4475,2478.2,2478.1,0.40399]
[1729996380627,2.16099525,2478.2,2478.0,0.404]
[1729996380822,0.4284,2478.1,2478.0,0.404]
[1729996382220,0.4284,2478.1,2477.8,3.633]
[1729996382421,1.71354525,2477.9,2477.5,3.2078]
[1729996382630,1.73721525,2477.8,2477.7,0.40405]
[1729996383322,1.73721525,2477.8,2477.5,5.40771525]
[1729996383522,0.8844,2477.7,2477.6,0.40406]
[1729996384124,0.8844,2477.7,2477.5,5.40771525]
[1729996384125,2.19391525,2477.7,2477.5,3.6574]
[1729996384428,2.19391525,2477.7,2477.0,2.04921401]
[1729996384429,1.71360525,2477.6,2477.4,0.40411]
[1729996384614,4.9204,2477.7,2477.3,0.40411]
[1729996384615,1.30951525,2477.4,2477.3,0.40411]
[1729996384821,1.30951525,2477.4,2477.2,2.13371525]
[1729996385131,0.4041,2477.5,2477.2,1.22834]
[1729996385132,2.14271525,2477.3,2477.2,1.22834]
[1729996385818,2.14271525,2477.3,2477.2,2.53785525]
[1729996386626,2.14271525,2477.3,2477.1,0.40414]
[1729996386824,1.30951525,2477.2,2477.1,0.40414]
[1729996387829,2.14271525,2477.3,2477.0,4.51731525]
[1729996388227,2.54684525,2477.3,2477.1,0.40415]
[1729996388731,2.14271525,2477.3,2477.0,4.51731525]
[1729996389025,2.14271525,2477.3,2477.2,0.40414]
[1729996389026,2.96071525,2477.3,2477.2,0.40414]
[1729996389428,3.36483525,2477.3,2477.1,0.40415]
[1729996389630,2.96071525,2477.3,2477.1,0.40415]
[1729996390329,2.96071525,2477.3,2477.0,4.51731525]
[1729996390330,1.30951525,2477.2,2477.0,4.51731525]
[1729996390530,1.30951525,2477.2,2477.0,3.61196]
[1729996390932,1.30951525,2477.2,2477.1,0.40416]
[1729996391635,1.30951525,2477.2,2477.0,4.92148525]
[1729996392032,1.6512,2477.3,2477.2,0.40414]
[1729996393029,2.96071525,2477.3,2477.2,0.40414]
[1729996393426,0.4105,2477.3,2477.2,1.71365525]
[1729996393628,2.12751525,2477.4,2477.3,0.40412]
[1729996393930,3.01331525,2477.6,2477.5,0.40409]
[1729996394137,3.01331525,2477.6,2477.4,0.836]
[1729996394337,1.30951525,2477.5,2477.4,0.836]
[1729996398038,1.71360525,2477.5,2477.4,0.4319]
[1729996398234,0.40412,2477.4,2477.1,0.40414]
[1729996398431,1.7038,2477.6,2476.9,5.40131525]
[1729996398432,1.71366525,2477.2,2476.9,4.91268]
[1729996398632,1.30951525,2477.0,2476.9,4.47008]
[1729996399035,2.12461525,2477.1,2477.0,0.40417]
[1729996400930,2.12461525,2477.1,2476.9,0.8581]
[1729996401135,0.40419,2476.9,2476.7,3.61201]
[1729996401433,1.30951525,2476.8,2476.7,3.61201]
[1729996401838,1.71372525,2476.8,2476.7,3.2078]
[1729996402843,1.71372525,2476.8,2476.7,3.61202]
[1729996403044,1.30951525,2476.8,2476.7,3.61202]
[1729996403345,1.71372525,2476.8,2476.7,3.61202]
[1729996403543,1.30951525,2476.8,2476.7,3.61202]
[1729996404642,1.71372525,2476.8,2476.7,3.2078]
[1729996404847,1.30951525,2476.8,2476.7,3.2078]
[1729996405039,1.30951525,2476.8,2476.7,3.61202]
[1729996405752,1.30951525,2476.8,2476.7,0.40422]
[1729996406047,1.30951525,2476.9,2476.6,3.2078]
[1729996406240,1.30951525,2476.9,2476.8,0.4042]
[1729996407437,1.71370525,2476.9,2476.7,0.40421]
[1729996407835,1.30951525,2476.9,2476.8,0.40421]
[1729996409038,1.30951525,2476.9,2476.6,3.2078]
[1729996409247,1.71370525,2476.9,2476.7,0.40421]
[1729996409647,1.30951525,2476.9,2476.6,3.2078]
[1729996409839,1.30951525,2476.9,2476.8,0.40421]
[1729996410239,1.71370525,2476.9,2476.7,0.40421]
[1729996410950,1.30951525,2476.8,2476.7,0.40422]
[1729996414354,1.6331,2477.1,2476.6,3.2078]
[1729996414355,0.819,2476.9,2476.6,3.2078]
[1729996414557,1.30951525,2476.8,2476.7,0.40422]
[1729996416381,1.72911525,2476.8,2476.7,0.40422]
[1729996427260,2.13332525,2476.8,2476.7,0.40422]
[1729996427668,1.72911525,2476.8,2476.7,0.40422]
[1729996434466,2.13332525,2476.8,2476.6,0.40423]
[1729996434671,1.74121525,2476.7,2476.6,0.40423]
[1729996435585,2.14543525,2476.7,2476.6,0.40423]
[1729996435874,1.74121525,2476.7,2476.6,0.40423]
[1729996438485,2.14543525,2476.7,2476.6,0.40423]
[1729996438673,2.14543525,2476.7,2476.5,4.0736]
[1729996438674,5.77881525,2476.7,2476.5,4.0736]
[1729996438896,1.71375525,2476.6,2476.5,3.2078]
[1729996441382,1.71375525,2476.6,2476.5,3.61206]
[1729996441579,1.71375525,2476.6,2476.5,3.2078]
[1729996442172,1.71375525,2476.6,2476.5,3.61206]
[1729996442586,1.30951525,2476.6,2476.5,3.61206]
[1729996443386,1.30951525,2476.6,2476.5,0.40426]
[1729996443686,1.71375525,2476.6,2476.5,0.40426]
[1729996444476,1.30951525,2476.6,2476.5,0.40426]
[1729996445082,1.71375525,2476.6,2476.5,0.40426]
[1729996445482,1.30951525,2476.6,2476.5,0.40426]
[1729996450579,0.4317,2476.7,2476.4,2.36897453]
[1729996450780,0.4317,2476.7,2476.6,0.40424]
[1729996450991,1.74121525,2476.7,2476.6,0.40424]
[1729996451192,1.74121525,2476.7,2476.6,1.23644]
[1729996451989,2.14543525,2476.7,2476.6,1.23644]
[1729996453488,0.40425,2476.6,2476.5,0.40425]
[1729996453689,1.30951525,2476.6,2476.5,0.40425]
[1729996454083,1.71375525,2476.6,2476.5,0.40425]
[1729996454591,1.30951525,2476.6,2476.5,0.40425]
[1729996455191,1.71375525,2476.6,2476.5,0.40425]
[1729996455393,1.30951525,2476.6,2476.5,0.40425]
[1729996455785,2.12751525,2476.6,2476.5,0.40425]
[1729996457090,2.53175525,2476.6,2476.5,0.40425]
[1729996457286,2.53175525,2476.6,2476.4,1.47755928]
[1729996457487,1.73451525,2476.5,2476.4,1.88182928]
[1729996461699,1.73451525,2476.5,2476.4,0.82237]
[1729996462292,1.73451525,2476.5,2476.4,1.88182928]
[1729996462493,1.73451525,2476.5,2476.4,0.82237]
[1729996462794,1.73451525,2476.5,2476.4,1.88182928]
[1729996463301,2.13877525,2476.5,2476.4,1.88182928]
[1729996463593,1.73451525,2476.5,2476.4,1.88182928]
[1729996464599,1.73451525,2476.5,2476.4,0.82237]
[1729996471599,1.73451525,2476.5,2476.4,1.88182928]
[1729996473500,1.30951525,2476.5,2476.4,1.88182928]
[1729996476592,1.30951525,2476.5,2476.4,3.48039742]
[1729996477799,1.30951525,2476.5,2476.4,1.88182928]
[1729996478396,0.4339,2476.8,2476.7,0.40422]
[1729996478603,2.56141525,2476.8,2476.7,0.40422]
[1729996479405,2.56141525,2476.8,2476.7,1.27482]
[1729996481506,2.96562525,2476.8,2476.7,1.27482]
[1729996481706,2.56141525,2476.8,2476.7,1.27482]
[1729996482508,2.96562525,2476.8,2476.7,0.8706]
[1729996482700,2.56141525,2476.8,2476.7,0.8706]
[1729996482910,2.56141525,2476.8,2476.7,1.27482]
[1729996483607,2.56141525,2476.8,2476.7,0.8706]
[1729996483812,2.96562525,2476.8,2476.7,0.8706]
[1729996486215,2.96562525,2476.8,2476.7,1.27482]
[1729996486415,2.96562525,2476.8,2476.7,0.8706]
[1729996486618,2.56141525,2476.8,2476.7,1.27482]
[1729996487115,2.96562525,2476.8,2476.7,0.8706]
[1729996487310,0.40422,2476.7,2476.5,3.61205]
[1729996487516,0.40426,2476.5,2476.3,0.40428]
[1729996487719,0.40424,2476.6,2476.4,1.03634581]
[1729996487913,0.4362,2476.5,2476.4,0.85306]
[1729996488218,0.4362,2476.5,2476.4,1.48515825]
[1729996488412,0.4362,2476.5,2476.4,5.52355577]
[1729996488913,1.74571525,2476.5,2476.4,5.52355577]
[1729996489422,1.74571525,2476.5,2476.4,1.48515577]
[1729996490216,2.14997525,2476.5,2476.4,1.48515577]
[1729996491721,1.74571525,2476.5,2476.4,1.48515577]
[1729996492119,1.74571525,2476.5,2476.4,0.85306]
[1729996492324,1.74571525,2476.5,2476.4,1.48517491]
[1729996492325,2.16061525,2476.5,2476.4,1.48517491]
[1729996492723,2.16061525,2476.5,2476.4,0.85306]
[1729996494515,2.16061525,2476.5,2476.4,2.45279028]
[1729996500717,2.16061525,2476.5,2476.4,3.08489487]
[1729996501524,2.16061525,2476.5,2476.4,4.6770478]
[1729996501926,2.16061525,2476.5,2476.4,3.08489487]
[1729996502832,2.16061525,2476.5,2476.4,4.6770478]
[1729996503328,2.16061525,2476.5,2476.4,3.08489487]
[1729996504034,2.16061525,2476.5,2476.4,4.67693085]
[1729996504224,2.16061525,2476.5,2476.4,4.67691492]
[1729996504624,2.16061525,2476.5,2476.4,4.14616866]
[1729996505027,2.16061525,2476.5,2476.4,4.67691492]
[1729996505323,2.56487525,2476.5,2476.4,4.67691492]
[1729996505525,2.16061525,2476.5,2476.4,4.67691492]
[1729996505926,2.16061525,2476.5,2476.4,3.08476199]
[1729996506126,2.16061525,2476.5,2476.4,4.14614897]
[1729996506322,2.56487525,2476.5,2476.4,4.14615021]
[1729996506532,2.16061525,2476.5,2476.4,4.14615021]
[1729996506834,2.16061525,2476.5,2476.4,3.08476323]
[1729996507236,2.16061525,2476.5,2476.4,4.14614757]
[1729996507734,2.16061525,2476.5,2476.4,3.51404174]
[1729996508026,2.16061525,2476.5,2476.4,2.4526574]
[1729996508533,2.16061525,2476.5,2476.4,1.91444231]
[1729996508735,2.16061525,2476.5,2476.4,3.51400946]
[1729996508936,2.16061525,2476.5,2476.4,3.51401015]
[1729996509234,2.16061525,2476.5,2476.4,2.45262715]
[1729996510032,2.16061525,2476.5,2476.4,3.59590513]
[1729996510033,2.56487525,2476.5,2476.4,3.59590513]
[1729996510222,2.16061525,2476.5,2476.4,3.59590513]
[1729996516735,2.16061525,2476.5,2476.4,0.40426]
[1729996517127,2.16061525,2476.5,2476.4,2.09778153]
[1729996519032,1.30951525,2476.5,2476.4,2.09778153]
[1729996519235,1.30951525,2476.5,2476.4,2.51538153]
[1729996521147,1.30951525,2476.5,2476.4,1.88327387]
[1729996521342,1.30951525,2476.5,2476.4,2.51537931]
[1729996522942,1.30951525,2476.5,2476.4,1.88327387]
[1729996524728,1.30951525,2476.5,2476.4,4.01365797]
[1729996525135,1.30951525,2476.5,2476.4,2.42157999]
[1729996527434,0.8268,2476.8,2476.4,2.42157999]
[1729996527435,0.4203,2476.8,2476.4,7.36523524]
[1729996527731,22.62083662,2477.8,2477.0,0.40417]
[1729996527732,0.818,2477.1,2477.0,0.40417]
[1729996528839,2.12751525,2477.1,2477.0,0.40417]
[1729996532042,2.12751525,2477.1,2476.9,1.272]
[1729996532043,2.53168525,2477.1,2476.9,1.67618]
[1729996532237,1.30951525,2477.0,2476.9,1.67618]
[1729996533639,1.2273,2477.1,2476.9,1.272]
[1729996533844,0.818,2477.1,2477.0,0.40417]
[1729996534145,2.12751525,2477.1,2477.0,0.40417]
[1729996534634,0.818,2477.1,2477.0,0.40417]
[1729996534848,3.2078,2477.2,2477.1,0.40416]
[1729996535232,4.51731525,2477.2,2477.1,0.40416]
[1729996535840,0.818,2477.4,2477.3,0.40412]
[1729996536034,2.12751525,2477.4,2477.3,0.40412]
[1729996536640,2.12751525,2477.4,2477.3,0.83712]
[1729996537633,2.12751525,2477.4,2477.3,1.27752]
[1729996537834,1.30951525,2477.4,2477.3,1.27752]